[Event "Titled Tuesday Blitz May 17 Late 2022"]
[White "Babazada, Khazar"]
[Black "Norowitz, Yaacov"]
[WhiteFideId "13413554"]
[BlackFideId "2024799"]
[WhiteElo "2406"]
[BlackElo "2412"]
[Result "0-1"]
[Round "07"]
[TimeControl "180+1"]
[Date "2022.05.17"]
[WhiteClock "0:00:03"]
[BlackClock "0:00:38"]

1. e4 {[%clk 0:03:00]}  c6 {[%clk 0:02:59]} 2. d4 {[%clk 0:02:59]}  d5 {[%clk 0:02:59]} 3. Nc3 {[%clk 0:03:00]}  dxe4 {[%clk 0:02:45]} 4. Nxe4 {[%clk 0:03:00]}  Nf6 {[%clk 0:02:45]} 5. Nxf6+ {[%clk 0:02:59]}  gxf6 {[%clk 0:02:46]} 6. c3 {[%clk 0:03:00]}  Qd5 {[%clk 0:02:47]} 7. Nf3 {[%clk 0:02:57]}  Bg4 {[%clk 0:02:45]} 8. Be2 {[%clk 0:02:56]}  Nd7 {[%clk 0:02:45]} 9. h3 {[%clk 0:02:54]}  Bh5 {[%clk 0:02:45]} 10. Qb3 {[%clk 0:02:50]}  O-O-O {[%clk 0:02:45]} 11. Qxd5 {[%clk 0:02:45]}  cxd5 {[%clk 0:02:45]} 12. a4 {[%clk 0:02:46]}  Rg8 {[%clk 0:02:44]} 13. O-O {[%clk 0:02:41]}  e6 {[%clk 0:02:38]} 14. Re1 {[%clk 0:02:39]}  Bd6 {[%clk 0:02:38]} 15. Kf1 {[%clk 0:02:39]}  Nb8 {[%clk 0:02:36]} 16. a5 {[%clk 0:02:36]}  a6 {[%clk 0:02:36]} 17. Be3 {[%clk 0:02:19]}  Nc6 {[%clk 0:02:36]} 18. g3 {[%clk 0:02:15]}  Bc7 {[%clk 0:02:33]} 19. b4 {[%clk 0:02:13]}  Na7 {[%clk 0:02:33]} 20. Nd2 {[%clk 0:02:10]}  Bxe2+ {[%clk 0:02:32]} 21. Kxe2 {[%clk 0:02:11]}  Kb8 {[%clk 0:02:32]} 22. Kd3 {[%clk 0:02:09]}  Nb5 {[%clk 0:02:32]} 23. Nb3 {[%clk 0:02:06]}  h5 {[%clk 0:02:30]} 24. h4 {[%clk 0:02:05]}  Bd6 {[%clk 0:02:25]} 25. Nc5 {[%clk 0:02:00]}  Kc7 {[%clk 0:02:26]} 26. Bd2 {[%clk 0:01:54]}  Kc6 {[%clk 0:02:25]} 27. Re3 {[%clk 0:01:33]}  e5 {[%clk 0:02:25]} 28. dxe5 {[%clk 0:01:25]}  fxe5 {[%clk 0:02:25]} 29. Nb3 {[%clk 0:01:16]}  f5 {[%clk 0:02:14]} 30. Kc2 {[%clk 0:01:09]}  Rg4 {[%clk 0:02:07]} 31. Rae1 {[%clk 0:01:07]}  e4 {[%clk 0:02:06]} 32. R3e2 {[%clk 0:00:54]}  Rc8 {[%clk 0:02:04]} 33. Kb2 {[%clk 0:00:52]}  Kd7 {[%clk 0:02:03]} 34. Rd1 {[%clk 0:00:45]}  Ke6 {[%clk 0:01:58]} 35. Be1 {[%clk 0:00:38]}  Rg7 {[%clk 0:01:54]} 36. Rc2 {[%clk 0:00:35]}  Rgc7 {[%clk 0:01:54]} 37. Rdc1 {[%clk 0:00:32]}  Rc4 {[%clk 0:01:53]} 38. Bd2 {[%clk 0:00:31]}  Kf7 {[%clk 0:01:44]} 39. Bf4 {[%clk 0:00:25]}  Be7 {[%clk 0:01:40]} 40. Be3 {[%clk 0:00:22]}  Bf6 {[%clk 0:01:38]} 41. Bc5 {[%clk 0:00:19]}  Ke6 {[%clk 0:01:34]} 42. Nd2 {[%clk 0:00:17]}  R8xc5 {[%clk 0:01:22]} 43. bxc5 {[%clk 0:00:18]}  Rxc5 {[%clk 0:01:12]} 44. Nb3 {[%clk 0:00:18]}  Rc4 {[%clk 0:01:11]} 45. Nd2 {[%clk 0:00:19]}  Rc6 {[%clk 0:01:05]} 46. Nb3 {[%clk 0:00:19]}  Be5 {[%clk 0:01:04]} 47. Nd2 {[%clk 0:00:17]}  Rc8 {[%clk 0:00:59]} 48. Kb3 {[%clk 0:00:15]}  d4 {[%clk 0:00:57]} 49. Nc4 {[%clk 0:00:15]}  Nxc3 {[%clk 0:00:53]} 50. Nxe5 {[%clk 0:00:12]}  Kxe5 {[%clk 0:00:53]} 51. Rb2 {[%clk 0:00:13]}  Rc5 {[%clk 0:00:52]} 52. Re1 {[%clk 0:00:10]}  Kd5 {[%clk 0:00:50]} 53. Rd2 {[%clk 0:00:06]}  Rb5+ {[%clk 0:00:49]} 54. Kc2 {[%clk 0:00:06]}  Kc4 {[%clk 0:00:46]} 55. Ra1 {[%clk 0:00:04]}  Rb4 {[%clk 0:00:42]} 56. f3 {[%clk 0:00:02]}  e3 {[%clk 0:00:41]} 57. Rd3 {[%clk 0:00:03]}  Rb2+ {[%clk 0:00:38]} 0-1


[Site "https://www.chess.com"]

[Event "Titled Tuesday Blitz May 17 Late 2022"]
[White "Bluebaum, Matthias"]
[Black "Kozak, Adam"]
[WhiteFideId "24651516"]
[BlackFideId "753246"]
[WhiteElo "2556"]
[BlackElo "2459"]
[Result "1/2-1/2"]
[Round "07"]
[TimeControl "180+1"]
[Date "2022.05.17"]
[WhiteClock "0:00:36"]
[BlackClock "0:00:15"]

1. d4 {[%clk 0:03:00]}  Nf6 {[%clk 0:02:59]} 2. c4 {[%clk 0:03:01]}  e6 {[%clk 0:03:00]} 3. Nc3 {[%clk 0:03:01]}  c5 {[%clk 0:02:57]} 4. d5 {[%clk 0:03:01]}  exd5 {[%clk 0:02:58]} 5. cxd5 {[%clk 0:03:02]}  d6 {[%clk 0:02:58]} 6. Nf3 {[%clk 0:03:03]}  g6 {[%clk 0:02:59]} 7. Bg5 {[%clk 0:03:03]}  Bg7 {[%clk 0:02:59]} 8. Nd2 {[%clk 0:03:04]}  O-O {[%clk 0:02:59]} 9. e4 {[%clk 0:03:05]}  Nbd7 {[%clk 0:02:59]} 10. Be2 {[%clk 0:03:05]}  a6 {[%clk 0:02:55]} 11. a4 {[%clk 0:03:04]}  Qe7 {[%clk 0:02:55]} 12. O-O {[%clk 0:03:03]}  Re8 {[%clk 0:02:55]} 13. f4 {[%clk 0:03:02]}  Qf8 {[%clk 0:02:55]} 14. Kh1 {[%clk 0:03:02]}  Rb8 {[%clk 0:02:54]} 15. Qc2 {[%clk 0:03:00]}  Nb6 {[%clk 0:02:48]} 16. Rae1 {[%clk 0:02:51]}  Nbd7 {[%clk 0:02:28]} 17. Bh4 {[%clk 0:02:36]}  Kh8 {[%clk 0:01:32]} 18. Bg3 {[%clk 0:02:35]}  Nh5 {[%clk 0:01:32]} 19. Bxh5 {[%clk 0:02:34]}  gxh5 {[%clk 0:01:33]} 20. Qd1 {[%clk 0:02:28]}  b5 {[%clk 0:01:27]} 21. axb5 {[%clk 0:02:28]}  axb5 {[%clk 0:01:28]} 22. e5 {[%clk 0:02:23]}  dxe5 {[%clk 0:00:55]} 23. Qxh5 {[%clk 0:02:07]}  Nf6 {[%clk 0:00:53]} 24. Qh4 {[%clk 0:02:08]}  e4 {[%clk 0:00:50]} 25. Ndxe4 {[%clk 0:02:03]}  Nxe4 {[%clk 0:00:49]} 26. Nxe4 {[%clk 0:02:04]}  Bf5 {[%clk 0:00:49]} 27. Nf6 {[%clk 0:01:52]}  Rxe1 {[%clk 0:00:47]} 28. Rxe1 {[%clk 0:01:53]}  h6 {[%clk 0:00:24]} 29. h3 {[%clk 0:01:41]}  b4 {[%clk 0:00:23]} 30. Bf2 {[%clk 0:01:31]}  Qd6 {[%clk 0:00:19]} 31. Ne8 {[%clk 0:01:31]}  Qxd5 {[%clk 0:00:19]} 32. Nxg7 {[%clk 0:01:29]}  Kxg7 {[%clk 0:00:20]} 33. Re5 {[%clk 0:01:27]}  Qd1+ {[%clk 0:00:18]} 34. Kh2 {[%clk 0:01:27]}  Qd3 {[%clk 0:00:17]} 35. Bxc5 {[%clk 0:01:25]}  b3 {[%clk 0:00:14]} 36. Re3 {[%clk 0:01:16]}  Qa6 {[%clk 0:00:09]} 37. Bd4+ {[%clk 0:01:16]}  Kh7 {[%clk 0:00:08]} 38. Re7 {[%clk 0:01:12]}  Qg6 {[%clk 0:00:06]} 39. g4 {[%clk 0:00:58]}  Rg8 {[%clk 0:00:06]} 40. Qg3 {[%clk 0:00:42]}  Be6 {[%clk 0:00:06]} 41. Qe3 {[%clk 0:00:40]}  Qc2+ {[%clk 0:00:05]} 42. Kg3 {[%clk 0:00:40]}  Qc4 {[%clk 0:00:02]} 43. Bc3 {[%clk 0:00:37]}  Qd5 {[%clk 0:00:01]} 44. f5 {[%clk 0:00:36]}  Bxf5 {[%clk 0:00:01]} 45. Re5 {[%clk 0:00:36]}  Qd7 {[%clk 0:00:01]} 46. Bd2 {[%clk 0:00:32]}  Rg6 {[%clk 0:00:01]} 47. Qf4 {[%clk 0:00:20]}  Be6 {[%clk 0:00:01]} 48. Rh5 {[%clk 0:00:21]}  Qd5 {[%clk 0:00:01]} 49. Rxh6+ {[%clk 0:00:21]}  Rxh6 {[%clk 0:00:01]} 50. Qxh6+ {[%clk 0:00:22]}  Kg8 {[%clk 0:00:02]} 51. Bc3 {[%clk 0:00:22]}  Qd3+ {[%clk 0:00:02]} 52. Kh2 {[%clk 0:00:22]}  Qc2+ {[%clk 0:00:02]} 53. Kg3 {[%clk 0:00:23]}  Qd3+ {[%clk 0:00:03]} 54. Kh4 {[%clk 0:00:23]}  Qh7 {[%clk 0:00:03]} 55. Kg5 {[%clk 0:00:23]}  Qxh6+ {[%clk 0:00:03]} 56. Kxh6 {[%clk 0:00:24]}  Bd5 {[%clk 0:00:02]} 57. Kg5 {[%clk 0:00:24]}  Be6 {[%clk 0:00:02]} 58. Kf6 {[%clk 0:00:23]}  Kh7 {[%clk 0:00:03]} 59. Bd2 {[%clk 0:00:22]}  Bc4 {[%clk 0:00:03]} 60. h4 {[%clk 0:00:22]}  Be6 {[%clk 0:00:03]} 61. g5 {[%clk 0:00:23]}  Bc4 {[%clk 0:00:03]} 62. h5 {[%clk 0:00:23]}  Bd5 {[%clk 0:00:04]} 63. Bc3 {[%clk 0:00:23]}  Bc4 {[%clk 0:00:04]} 64. Bd4 {[%clk 0:00:24]}  Bd5 {[%clk 0:00:04]} 65. Bc3 {[%clk 0:00:24]}  Bc4 {[%clk 0:00:05]} 66. Bd2 {[%clk 0:00:24]}  Bd5 {[%clk 0:00:05]} 67. Ke7 {[%clk 0:00:24]}  Bc4 {[%clk 0:00:05]} 68. Kd6 {[%clk 0:00:25]}  Kg8 {[%clk 0:00:05]} 69. Kc5 {[%clk 0:00:24]}  Be6 {[%clk 0:00:05]} 70. Bc3 {[%clk 0:00:24]}  Kh7 {[%clk 0:00:05]} 71. Kb4 {[%clk 0:00:24]}  Kg8 {[%clk 0:00:05]} 72. Bf6 {[%clk 0:00:25]}  Bd5 {[%clk 0:00:05]} 73. Kc3 {[%clk 0:00:25]}  Be6 {[%clk 0:00:06]} 74. Kd4 {[%clk 0:00:26]}  Kh7 {[%clk 0:00:05]} 75. Ke5 {[%clk 0:00:26]}  Bc4 {[%clk 0:00:05]} 76. Kd6 {[%clk 0:00:27]}  Kg8 {[%clk 0:00:06]} 77. Kd7 {[%clk 0:00:27]}  Bd5 {[%clk 0:00:06]} 78. Ke8 {[%clk 0:00:27]}  Bc4 {[%clk 0:00:06]} 79. Ke7 {[%clk 0:00:28]}  Bd5 {[%clk 0:00:06]} 80. Be5 {[%clk 0:00:28]}  Bc4 {[%clk 0:00:07]} 81. Kf6 {[%clk 0:00:29]}  Bd5 {[%clk 0:00:06]} 82. Bd4 {[%clk 0:00:29]}  Bc4 {[%clk 0:00:06]} 83. Bc3 {[%clk 0:00:30]}  Bd5 {[%clk 0:00:06]} 84. Kf5 {[%clk 0:00:27]}  Bc4 {[%clk 0:00:06]} 85. Bd4 {[%clk 0:00:26]}  Be6+ {[%clk 0:00:07]} 86. Ke5 {[%clk 0:00:26]}  Bc4 {[%clk 0:00:07]} 87. Bc3 {[%clk 0:00:26]}  Kh7 {[%clk 0:00:07]} 88. Bd2 {[%clk 0:00:22]}  Kg8 {[%clk 0:00:07]} 89. Be3 {[%clk 0:00:21]}  Be2 {[%clk 0:00:07]} 90. h6 {[%clk 0:00:20]}  Bc4 {[%clk 0:00:07]} 91. Kf6 {[%clk 0:00:21]}  Kh7 {[%clk 0:00:06]} 92. Bd4 {[%clk 0:00:22]}  Kg8 {[%clk 0:00:05]} 93. Bc3 {[%clk 0:00:22]}  Kh7 {[%clk 0:00:06]} 94. Ke7 {[%clk 0:00:22]}  Kg8 {[%clk 0:00:05]} 95. Kd6 {[%clk 0:00:22]}  Kh7 {[%clk 0:00:05]} 96. Kc5 {[%clk 0:00:23]}  Be6 {[%clk 0:00:05]} 97. Kb5 {[%clk 0:00:24]}  Kg6 {[%clk 0:00:05]} 98. Kb4 {[%clk 0:00:23]}  Kh7 {[%clk 0:00:05]} 99. Bd4 {[%clk 0:00:23]}  Kg6 {[%clk 0:00:06]} 100. Kc5 {[%clk 0:00:24]}  Kh7 {[%clk 0:00:06]} 101. Kd6 {[%clk 0:00:24]}  Kg6 {[%clk 0:00:07]} 102. Ke7 {[%clk 0:00:25]}  Kh7 {[%clk 0:00:07]} 103. Kf8 {[%clk 0:00:26]}  Bc4 {[%clk 0:00:07]} 104. Bc3 {[%clk 0:00:26]}  Bd5 {[%clk 0:00:08]} 105. Ke7 {[%clk 0:00:26]}  Bc4 {[%clk 0:00:08]} 106. Kf6 {[%clk 0:00:27]}  Bd5 {[%clk 0:00:08]} 107. Bd4 {[%clk 0:00:28]}  Bc4 {[%clk 0:00:09]} 108. Kf5 {[%clk 0:00:28]}  Bd5 {[%clk 0:00:09]} 109. Ke5 {[%clk 0:00:28]}  Bc4 {[%clk 0:00:10]} 110. Bc3 {[%clk 0:00:29]}  Be6 {[%clk 0:00:09]} 111. Kf6 {[%clk 0:00:28]}  Bc4 {[%clk 0:00:09]} 112. Bd2 {[%clk 0:00:29]}  Bd5 {[%clk 0:00:10]} 113. Bf4 {[%clk 0:00:29]}  Bc4 {[%clk 0:00:10]} 114. Ke7 {[%clk 0:00:30]}  Bd5 {[%clk 0:00:10]} 115. Be5 {[%clk 0:00:30]}  Bc4 {[%clk 0:00:10]} 116. Bd6 {[%clk 0:00:30]}  Bd5 {[%clk 0:00:10]} 117. Kf6 {[%clk 0:00:30]}  Bc4 {[%clk 0:00:10]} 118. Kf5 {[%clk 0:00:30]}  Be6+ {[%clk 0:00:10]} 119. Ke5 {[%clk 0:00:30]}  Bc4 {[%clk 0:00:11]} 120. Bc5 {[%clk 0:00:30]}  Be6 {[%clk 0:00:11]} 121. Kd6 {[%clk 0:00:28]}  Bc4 {[%clk 0:00:10]} 122. Bb4 {[%clk 0:00:28]}  Be6 {[%clk 0:00:10]} 123. Ke7 {[%clk 0:00:28]}  Bc4 {[%clk 0:00:10]} 124. Kf6 {[%clk 0:00:29]}  Bd5 {[%clk 0:00:11]} 125. Ba3 {[%clk 0:00:29]}  Bc4 {[%clk 0:00:11]} 126. Ke5 {[%clk 0:00:29]}  Be6 {[%clk 0:00:11]} 127. Ke4 {[%clk 0:00:30]}  Bc4 {[%clk 0:00:11]} 128. Kf4 {[%clk 0:00:31]}  Be6 {[%clk 0:00:12]} 129. Bc5 {[%clk 0:00:30]}  Bc4 {[%clk 0:00:12]} 130. Bd4 {[%clk 0:00:31]}  Be6 {[%clk 0:00:12]} 131. Ke3 {[%clk 0:00:32]}  Bc4 {[%clk 0:00:13]} 132. Bf6 {[%clk 0:00:33]}  Be6 {[%clk 0:00:13]} 133. Kd4 {[%clk 0:00:33]}  Kg6 {[%clk 0:00:13]} 134. Kc5 {[%clk 0:00:33]}  Kh7 {[%clk 0:00:14]} 135. Kc6 {[%clk 0:00:34]}  Bc4 {[%clk 0:00:14]} 136. Kd7 {[%clk 0:00:34]}  Be6+ {[%clk 0:00:14]} 137. Ke7 {[%clk 0:00:34]}  Bc4 {[%clk 0:00:15]} 138. Kf8 {[%clk 0:00:35]}  Bd5 {[%clk 0:00:15]} 139. Be7 {[%clk 0:00:36]}  Bc4 {[%clk 0:00:15]} 140. Bd6 {[%clk 0:00:36]} 1/2-1/2


[Site "https://www.chess.com"]

[Event "Titled Tuesday Blitz May 17 Late 2022"]
[White "Bortnyk, Olexandr"]
[Black "Suleymanli, Aydin"]
[WhiteFideId "14120828"]
[BlackFideId "13413937"]
[WhiteElo "2723"]
[BlackElo "2481"]
[Result "1/2-1/2"]
[Round "07"]
[TimeControl "180+1"]
[Date "2022.05.17"]
[WhiteClock "0:00:10"]
[BlackClock "0:00:18"]

1. d4 {[%clk 0:03:00]}  d5 {[%clk 0:02:48]} 2. Nc3 {[%clk 0:02:54]}  Nf6 {[%clk 0:02:47]} 3. Bf4 {[%clk 0:02:53]}  a6 {[%clk 0:02:47]} 4. e3 {[%clk 0:02:50]}  c5 {[%clk 0:02:44]} 5. dxc5 {[%clk 0:02:46]}  Qa5 {[%clk 0:02:38]} 6. Nf3 {[%clk 0:02:37]}  Qxc5 {[%clk 0:02:36]} 7. Be2 {[%clk 0:02:35]}  Nc6 {[%clk 0:02:36]} 8. O-O {[%clk 0:02:35]}  g6 {[%clk 0:02:36]} 9. Bc7 {[%clk 0:02:25]}  b5 {[%clk 0:02:21]} 10. Ne5 {[%clk 0:02:10]}  Na7 {[%clk 0:02:01]} 11. Ba5 {[%clk 0:01:36]}  b4 {[%clk 0:02:01]} 12. Bxb4 {[%clk 0:01:34]}  Qxb4 {[%clk 0:02:01]} 13. Nxd5 {[%clk 0:01:35]}  Qd6 {[%clk 0:02:01]} 14. Bf3 {[%clk 0:01:28]}  Rb8 {[%clk 0:02:00]} 15. Nc4 {[%clk 0:01:23]}  Qc5 {[%clk 0:01:52]} 16. Nxf6+ {[%clk 0:01:17]}  exf6 {[%clk 0:01:50]} 17. Qd4 {[%clk 0:01:13]}  Be6 {[%clk 0:01:46]} 18. Qxf6 {[%clk 0:01:10]}  Bxc4 {[%clk 0:01:35]} 19. Rfd1 {[%clk 0:00:55]}  Rg8 {[%clk 0:01:27]} 20. Bd5 {[%clk 0:00:51]}  Bxd5 {[%clk 0:01:03]} 21. Qe5+ {[%clk 0:00:51]}  Be6 {[%clk 0:01:03]} 22. Qxb8+ {[%clk 0:00:51]}  Nc8 {[%clk 0:01:02]} 23. Qb7 {[%clk 0:00:43]}  Bd6 {[%clk 0:00:52]} 24. Qxa6 {[%clk 0:00:41]}  Kf8 {[%clk 0:00:48]} 25. Qd3 {[%clk 0:00:22]}  Kg7 {[%clk 0:00:46]} 26. Qd4+ {[%clk 0:00:22]}  Qxd4 {[%clk 0:00:34]} 27. exd4 {[%clk 0:00:23]}  Nb6 {[%clk 0:00:34]} 28. b3 {[%clk 0:00:23]}  Nd5 {[%clk 0:00:29]} 29. c4 {[%clk 0:00:23]}  Nc3 {[%clk 0:00:30]} 30. Re1 {[%clk 0:00:24]}  Bf5 {[%clk 0:00:29]} 31. Re3 {[%clk 0:00:20]}  Nb1 {[%clk 0:00:20]} 32. g4 {[%clk 0:00:21]}  Bc2 {[%clk 0:00:20]} 33. a4 {[%clk 0:00:20]}  Bb4 {[%clk 0:00:17]} 34. a5 {[%clk 0:00:19]}  Ra8 {[%clk 0:00:16]} 35. a6 {[%clk 0:00:19]}  Bc3 {[%clk 0:00:17]} 36. Ra2 {[%clk 0:00:19]}  Bxd4 {[%clk 0:00:17]} 37. Rxc2 {[%clk 0:00:09]}  Bxe3 {[%clk 0:00:17]} 38. fxe3 {[%clk 0:00:10]}  Rxa6 {[%clk 0:00:17]} 39. b4 {[%clk 0:00:10]}  Ra1 {[%clk 0:00:15]} 40. Kf2 {[%clk 0:00:09]}  Ra4 {[%clk 0:00:10]} 41. c5 {[%clk 0:00:05]}  Rxb4 {[%clk 0:00:10]} 42. c6 {[%clk 0:00:03]}  Rb8 {[%clk 0:00:07]} 43. c7 {[%clk 0:00:02]}  Rc8 {[%clk 0:00:07]} 44. Kf3 {[%clk 0:00:01]}  Kf6 {[%clk 0:00:06]} 45. Kf4 {[%clk 0:00:02]}  Kg7 {[%clk 0:00:06]} 46. Kg5 {[%clk 0:00:03]}  h6+ {[%clk 0:00:06]} 47. Kf4 {[%clk 0:00:03]}  Kf6 {[%clk 0:00:07]} 48. Rc6+ {[%clk 0:00:03]}  Ke7 {[%clk 0:00:07]} 49. g5 {[%clk 0:00:04]}  hxg5+ {[%clk 0:00:07]} 50. Kxg5 {[%clk 0:00:05]}  Nd2 {[%clk 0:00:08]} 51. Kf4 {[%clk 0:00:04]}  Nb3 {[%clk 0:00:08]} 52. Ke5 {[%clk 0:00:03]}  Na5 {[%clk 0:00:08]} 53. Rc5 {[%clk 0:00:02]}  Nb7 {[%clk 0:00:09]} 54. Rc6 {[%clk 0:00:02]}  Kd7 {[%clk 0:00:09]} 55. Rf6 {[%clk 0:00:02]}  Ke8 {[%clk 0:00:09]} 56. Rc6 {[%clk 0:00:02]}  Ke7 {[%clk 0:00:07]} 57. h4 {[%clk 0:00:03]}  Na5 {[%clk 0:00:05]} 58. Rc3 {[%clk 0:00:03]}  Nb7 {[%clk 0:00:04]} 59. Rc6 {[%clk 0:00:04]}  Na5 {[%clk 0:00:04]} 60. Rc3 {[%clk 0:00:04]}  Kd7 {[%clk 0:00:04]} 61. Kf6 {[%clk 0:00:04]}  Nc6 {[%clk 0:00:05]} 62. Kxf7 {[%clk 0:00:04]}  Rxc7 {[%clk 0:00:05]} 63. Kf6 {[%clk 0:00:04]}  Kd6 {[%clk 0:00:04]} 64. Rd3+ {[%clk 0:00:04]}  Kc5 {[%clk 0:00:04]} 65. e4 {[%clk 0:00:05]}  Nd4 {[%clk 0:00:04]} 66. Kxg6 {[%clk 0:00:04]}  Re7 {[%clk 0:00:04]} 67. h5 {[%clk 0:00:04]}  Re6+ {[%clk 0:00:04]} 68. Kf7 {[%clk 0:00:03]}  Rxe4 {[%clk 0:00:05]} 69. h6 {[%clk 0:00:04]}  Rh4 {[%clk 0:00:06]} 70. Kg6 {[%clk 0:00:04]}  Ne6 {[%clk 0:00:06]} 71. Rf3 {[%clk 0:00:04]}  Nf4+ {[%clk 0:00:06]} 72. Kg5 {[%clk 0:00:04]}  Rh5+ {[%clk 0:00:06]} 73. Kxf4 {[%clk 0:00:03]}  Rxh6 {[%clk 0:00:06]} 74. Kg5 {[%clk 0:00:03]}  Rd6 {[%clk 0:00:07]} 75. Rc3+ {[%clk 0:00:04]}  Kb4 {[%clk 0:00:07]} 76. Rc1 {[%clk 0:00:05]}  Rd5+ {[%clk 0:00:07]} 77. Kf4 {[%clk 0:00:05]}  Rc5 {[%clk 0:00:07]} 78. Rb1+ {[%clk 0:00:06]}  Kc3 {[%clk 0:00:08]} 79. Ke3 {[%clk 0:00:06]}  Kc2 {[%clk 0:00:08]} 80. Rb4 {[%clk 0:00:06]}  Rc7 {[%clk 0:00:08]} 81. Rb8 {[%clk 0:00:06]}  Re7+ {[%clk 0:00:08]} 82. Kd4 {[%clk 0:00:06]}  Rd7+ {[%clk 0:00:09]} 83. Ke3 {[%clk 0:00:07]}  Rc7 {[%clk 0:00:10]} 84. Rh8 {[%clk 0:00:06]}  Rc3+ {[%clk 0:00:11]} 85. Kd4 {[%clk 0:00:06]}  Rd3+ {[%clk 0:00:11]} 86. Ke4 {[%clk 0:00:06]}  Rd2 {[%clk 0:00:12]} 87. Ke3 {[%clk 0:00:05]}  Rd3+ {[%clk 0:00:12]} 88. Ke4 {[%clk 0:00:05]}  Rd2 {[%clk 0:00:13]} 89. Rc8+ {[%clk 0:00:05]}  Kd1 {[%clk 0:00:13]} 90. Kf3 {[%clk 0:00:06]}  Rd3+ {[%clk 0:00:13]} 91. Ke4 {[%clk 0:00:06]}  Rd2 {[%clk 0:00:14]} 92. Ra8 {[%clk 0:00:06]}  Ke2 {[%clk 0:00:15]} 93. Rh8 {[%clk 0:00:06]}  Kd1 {[%clk 0:00:15]} 94. Ke3 {[%clk 0:00:06]}  Re2+ {[%clk 0:00:15]} 95. Kd3 {[%clk 0:00:06]}  Rd2+ {[%clk 0:00:16]} 96. Ke3 {[%clk 0:00:07]}  Re2+ {[%clk 0:00:16]} 97. Kd4 {[%clk 0:00:08]}  Rd2+ {[%clk 0:00:17]} 98. Kc3 {[%clk 0:00:08]}  Rc2+ {[%clk 0:00:17]} 99. Kb3 {[%clk 0:00:09]}  Re2 {[%clk 0:00:17]} 100. Rh1+ {[%clk 0:00:09]}  Kd2 {[%clk 0:00:17]} 101. Rh3 {[%clk 0:00:09]}  Re3+ {[%clk 0:00:17]} 102. Rxe3 {[%clk 0:00:10]}  Kxe3 {[%clk 0:00:18]} 1/2-1/2


[Site "https://www.chess.com"]

[Event "Titled Tuesday Blitz May 17 Late 2022"]
[White "Bryakin, Mikhail"]
[Black "Tisaj, Domen"]
[WhiteFideId "4165314"]
[BlackFideId "14628708"]
[WhiteElo "2417"]
[BlackElo "2326"]
[Result "1-0"]
[Round "07"]
[TimeControl "180+1"]
[Date "2022.05.17"]
[WhiteClock "0:00:04"]
[BlackClock "0:00:09"]

1. e4 {[%clk 0:02:54]}  c6 {[%clk 0:02:57]} 2. Nf3 {[%clk 0:02:48]}  d5 {[%clk 0:02:56]} 3. exd5 {[%clk 0:02:49]}  cxd5 {[%clk 0:02:56]} 4. Ne5 {[%clk 0:02:48]}  Nc6 {[%clk 0:02:56]} 5. Bb5 {[%clk 0:02:46]}  Bd7 {[%clk 0:02:56]} 6. Nxd7 {[%clk 0:02:40]}  Qxd7 {[%clk 0:02:57]} 7. O-O {[%clk 0:02:38]}  Nf6 {[%clk 0:02:57]} 8. d4 {[%clk 0:02:38]}  e6 {[%clk 0:02:58]} 9. c3 {[%clk 0:02:32]}  Be7 {[%clk 0:02:56]} 10. Nd2 {[%clk 0:02:31]}  O-O {[%clk 0:02:56]} 11. f4 {[%clk 0:02:32]}  a6 {[%clk 0:02:32]} 12. Bd3 {[%clk 0:02:32]}  Ne8 {[%clk 0:02:26]} 13. Nf3 {[%clk 0:02:29]}  f5 {[%clk 0:02:26]} 14. Ne5 {[%clk 0:02:28]}  Qc8 {[%clk 0:02:20]} 15. g4 {[%clk 0:02:23]}  Nd6 {[%clk 0:02:19]} 16. gxf5 {[%clk 0:02:23]}  exf5 {[%clk 0:02:19]} 17. Be3 {[%clk 0:02:24]}  Ne4 {[%clk 0:02:16]} 18. Kh1 {[%clk 0:02:24]}  Qe6 {[%clk 0:02:13]} 19. Rg1 {[%clk 0:02:23]}  Qh6 {[%clk 0:02:06]} 20. Qf3 {[%clk 0:02:21]}  Kh8 {[%clk 0:01:56]} 21. Rg2 {[%clk 0:02:18]}  Bf6 {[%clk 0:01:48]} 22. Rag1 {[%clk 0:02:18]}  Rad8 {[%clk 0:01:47]} 23. a4 {[%clk 0:02:15]}  Qh4 {[%clk 0:01:20]} 24. Bf2 {[%clk 0:02:07]}  Nxf2+ {[%clk 0:01:16]} 25. Rxf2 {[%clk 0:02:06]}  Bxe5 {[%clk 0:01:12]} 26. fxe5 {[%clk 0:02:05]}  g6 {[%clk 0:01:11]} 27. Rfg2 {[%clk 0:02:00]}  Ne7 {[%clk 0:01:04]} 28. Rg3 {[%clk 0:01:58]}  Qh6 {[%clk 0:00:36]} 29. Rh3 {[%clk 0:01:56]}  Qg7 {[%clk 0:00:36]} 30. Qf4 {[%clk 0:01:54]}  b5 {[%clk 0:00:30]} 31. axb5 {[%clk 0:01:47]}  axb5 {[%clk 0:00:30]} 32. Rhg3 {[%clk 0:01:45]}  b4 {[%clk 0:00:29]} 33. cxb4 {[%clk 0:01:43]}  Rb8 {[%clk 0:00:19]} 34. b5 {[%clk 0:01:43]}  Rfc8 {[%clk 0:00:10]} 35. h4 {[%clk 0:01:43]}  Rb6 {[%clk 0:00:06]} 36. h5 {[%clk 0:01:44]}  Kg8 {[%clk 0:00:02]} 37. Kh2 {[%clk 0:01:43]}  Rf8 {[%clk 0:00:01]} 38. R1g2 {[%clk 0:01:43]}  Qf7 {[%clk 0:00:02]} 39. Qh6 {[%clk 0:01:43]}  Re6 {[%clk 0:00:02]} 40. Rh3 {[%clk 0:01:39]}  Qg7 {[%clk 0:00:02]} 41. Qf4 {[%clk 0:01:39]}  h6 {[%clk 0:00:01]} 42. hxg6 {[%clk 0:01:38]}  Rxg6 {[%clk 0:00:02]} 43. Rhg3 {[%clk 0:01:37]}  Kh8 {[%clk 0:00:01]} 44. Qf3 {[%clk 0:01:37]}  Rg5 {[%clk 0:00:02]} 45. Rxg5 {[%clk 0:01:34]}  hxg5 {[%clk 0:00:02]} 46. Qh5+ {[%clk 0:01:35]}  Qh7 {[%clk 0:00:03]} 47. Rxg5 {[%clk 0:01:35]}  Qxh5+ {[%clk 0:00:03]} 48. Rxh5+ {[%clk 0:01:35]}  Kg8 {[%clk 0:00:04]} 49. Rh6 {[%clk 0:01:35]}  Kf7 {[%clk 0:00:05]} 50. Rf6+ {[%clk 0:01:34]}  Ke8 {[%clk 0:00:05]} 51. Rxf8+ {[%clk 0:01:34]}  Kxf8 {[%clk 0:00:06]} 52. b6 {[%clk 0:01:35]}  Nc6 {[%clk 0:00:06]} 53. Bb5 {[%clk 0:01:36]}  Nb8 {[%clk 0:00:05]} 54. Kg3 {[%clk 0:01:36]}  Ke7 {[%clk 0:00:06]} 55. Kf4 {[%clk 0:01:37]}  Ke6 {[%clk 0:00:06]} 56. b4 {[%clk 0:01:38]}  Nc6 {[%clk 0:00:05]} 57. Bxc6 {[%clk 0:01:38]}  Ke7 {[%clk 0:00:05]} 58. b7 {[%clk 0:01:38]}  Ke6 {[%clk 0:00:06]} 59. b8=Q {[%clk 0:01:38]}  Ke7 {[%clk 0:00:07]} 60. Qd6+ {[%clk 0:01:38]}  Kf7 {[%clk 0:00:08]} 61. Bxd5+ {[%clk 0:01:39]}  Kg7 {[%clk 0:00:09]} 62. Qf6+ {[%clk 0:01:38]}  Kh7 {[%clk 0:00:09]} 63. Qg5 {[%clk 0:01:38]}  Kh8 {[%clk 0:00:09]} 64. Qg8# {[%clk 0:00:04]} 1-0


[Site "https://www.chess.com"]